fUST/lending_fUST_20260101
["ID","MTS","AMOUNT","RATE_DAILY","PERIOD"]
[400244259,1767215440163,-500.0,0.00023013,2]
[400244261,1767215440172,-500.0,0.00023013,2]
[400244263,1767215440181,-560.02,0.00023013,2]
[400244265,1767215440190,-500.0,0.00023013,2]
[400244267,1767215440199,-1304.54,0.00023013,2]
[400244269,1767215440208,-5028.39,0.00023013,2]
[400244271,1767215440217,-500.0,0.00023013,2]
[400244272,1767215440225,-500.0,0.00023013,2]
[400244274,1767215440234,-500.0,0.00023013,2]
[400244276,1767215440244,-3025.87392787,0.00023013,2]
[400244279,1767215440257,-3320.11607213,0.00023013,2]
[400244281,1767215440267,-500.0,0.00023013,2]
[400244283,1767215440276,-541.38,0.00023013,2]
[400244284,1767215440286,-500.0,0.00023013,2]
[400244286,1767215440295,-1390.89,0.00023013,2]
[400244288,1767215440304,-684.8,0.00023013,2]
[400244290,1767215440313,-500.0,0.00023013,2]
[400244293,1767215440322,-642.07,0.00023013,2]
[400244296,1767215440331,-500.0,0.00023013,2]
[400244298,1767215440341,-677.78,0.00023013,2]
[400244299,1767215440350,-180.93084301,0.00023287,2]
[400244301,1767215440359,-500.0,0.00023287,2]
[400244302,1767215440368,-822.87,0.00023287,2]
[400244303,1767215440378,-1077.49,0.00023287,2]
[400244304,1767215440388,-500.0,0.00023287,2]
[400244305,1767215440397,-500.0,0.00023287,2]
[400244306,1767215440407,-560.02,0.00023287,2]
[400244307,1767215440417,-500.0,0.00023287,2]
[400244308,1767215440427,-1304.54,0.00023287,2]
[400244309,1767215440436,-5028.39,0.00023287,2]
[400244310,1767215440445,-500.0,0.00023287,2]
[400244311,1767215440454,-500.0,0.00023287,2]
[400244312,1767215440464,-500.0,0.00023287,2]
[400244313,1767215440473,-6345.99,0.00023287,2]
[400244314,1767215440484,-500.0,0.00023287,2]
[400244315,1767215440495,-541.38,0.00023287,2]
[400244316,1767215440504,-500.0,0.00023287,2]
[400244317,1767215440514,-1390.89,0.00023287,2]
[400244318,1767215440523,-684.8,0.00023287,2]
[400244319,1767215440532,-642.07,0.00023287,2]
[400244320,1767215440542,-500.0,0.00023287,2]
[400244321,1767215440551,-677.78,0.00023287,2]
[400244322,1767215440561,-9359.66,0.000233,2]
[400244323,1767215440571,-156.72496226,0.00023373,2]
[400244324,1767215440580,-225.44706799,0.00023501,2]
[400244325,1767215440590,-180.93084301,0.00023561,2]
[400244326,1767215440599,-500.0,0.00023561,2]
[400244327,1767215440608,-822.87,0.00023561,2]
[400244328,1767215440618,-1077.49,0.00023561,2]
[400244329,1767215440629,-500.0,0.00023561,2]
[400244330,1767215440638,-500.0,0.00023561,2]
[400244331,1767215440647,-560.02,0.00023561,2]
[400244332,1767215440657,-500.0,0.00023561,2]
[400244333,1767215440666,-1304.54,0.00023561,2]
[400244334,1767215440675,-5028.39,0.00023561,2]
[400244335,1767215440684,-500.0,0.00023561,2]
[400244336,1767215440693,-500.0,0.00023561,2]
[400244337,1767215440702,-500.0,0.00023561,2]
[400244338,1767215440712,-6345.99,0.00023561,2]
[400244339,1767215440721,-500.0,0.00023561,2]
[400244340,1767215440731,-541.38,0.00023561,2]
[400244341,1767215440740,-500.0,0.00023561,2]
[400244342,1767215440749,-1390.89,0.00023561,2]
[400244343,1767215440758,-684.8,0.00023561,2]
[400244344,1767215440767,-642.07,0.00023561,2]
[400244345,1767215440776,-500.0,0.00023561,2]
[400244346,1767215440785,-677.78,0.00023561,2]
[400244347,1767215440794,-1930.84,0.00023624,2]
[400244348,1767215440803,-156.72496226,0.00023654,17]
[400244349,1767215440812,-232.1,0.00023723,2]
[400244350,1767215440821,-500.0,0.00023835,2]
[400244351,1767215440831,-822.87,0.00023835,2]
[400244352,1767215440841,-648.18785132,0.00023835,2]
[400244353,1767215440851,-1077.49,0.00023835,2]
[400244354,1767215440860,-500.0,0.00023835,2]
[400244355,1767215440869,-500.0,0.00023835,2]
[400244356,1767215440879,-560.02,0.00023835,2]
[400244357,1767215440888,-500.0,0.00023835,2]
[400244358,1767215440898,-1304.54,0.00023835,2]
[400244359,1767215440910,-5028.39,0.00023835,2]
[400244360,1767215440919,-200.0,0.00023835,2]
[400244361,1767215440928,-200.0,0.00023835,2]
[400244362,1767215440937,-200.90977335,0.00023835,2]
[400244364,1767215440946,-488.35200289,0.00023835,2]
[400244366,1767215440956,-500.0,0.00023835,2]
[400244368,1767215440966,-500.0,0.00023835,2]
[400244370,1767215440975,-6345.99,0.00023835,2]
[400244371,1767215440985,-500.0,0.00023835,2]
[400244373,1767215440994,-541.38,0.00023835,2]
[400244375,1767215441003,-500.0,0.00023835,2]
[400244377,1767215441013,-1390.89,0.00023835,2]
[400244378,1767215441022,-684.8,0.00023835,2]
[400244380,1767215441031,-642.07,0.00023835,2]
[400244382,1767215441040,-500.0,0.00023835,2]
[400244384,1767215441050,-677.78,0.00023835,2]
[400244386,1767215441059,-921.25637527,0.000239,2]
[400244387,1767215441068,-921.25637526,0.000239,2]
[400244388,1767215441078,-921.25637526,0.000239,2]
[400244389,1767215441087,-921.25637526,0.000239,2]
[400244390,1767215441096,-921.25637526,0.000239,2]
[400244391,1767215441105,-921.25637526,0.000239,2]
[400244392,1767215441115,-921.25637526,0.000239,2]
[400244393,1767215441124,-921.25637526,0.000239,2]
[400244394,1767215441133,-156.72496226,0.00023935,32]
[400244395,1767215441142,-921.25637526,0.00023971,2]
[400244396,1767215441152,-429.21275328,0.00023976,2]
[400244397,1767215441161,-10000.0,0.00024009,2]
[400244398,1767215441170,-500.0,0.00024109,2]
[400244399,1767215441179,-822.87,0.00024109,2]
[400244400,1767215441188,-648.18785132,0.00024109,2]
[400244401,1767215441198,-1077.49,0.00024109,2]
[400244402,1767215441207,-500.0,0.00024109,2]
[400244403,1767215441216,-500.0,0.00024109,2]
[400244404,1767215441225,-560.02,0.00024109,2]
[400244405,1767215441234,-500.0,0.00024109,2]
[400244406,1767215441244,-1304.54,0.00024109,2]
[400244407,1767215441279,-5028.39,0.00024109,2]
[400244408,1767215441288,-500.0,0.00024109,2]
[400244409,1767215441298,-500.0,0.00024109,2]
[400244410,1767215441307,-6345.99,0.00024109,2]
[400244411,1767215441316,-500.0,0.00024109,2]
[400244412,1767215441326,-541.38,0.00024109,2]
[400244413,1767215441335,-500.0,0.00024109,2]
[400244414,1767215441344,-1390.89,0.00024109,2]
[400244415,1767215441354,-684.8,0.00024109,2]
[400244416,1767215441363,-642.07,0.00024109,2]
[400244417,1767215441373,-500.0,0.00024109,2]
[400244418,1767215441382,-677.78,0.00024109,2]
[400244419,1767215441392,-507.55014945,0.00024127,2]
[400244420,1767215441402,-156.72496226,0.00024216,48]
[400244421,1767215441411,-500.0,0.00024383,2]
[400244422,1767215441422,-822.87,0.00024383,2]
[400244423,1767215441431,-648.18785132,0.00024383,2]
[400244424,1767215441440,-1077.49,0.00024383,2]
[400244425,1767215441450,-500.0,0.00024383,2]
[400244426,1767215441459,-500.0,0.00024383,2]
[400244427,1767215441468,-560.02,0.00024383,2]
[400244428,1767215441477,-500.0,0.00024383,2]
[400244429,1767215441488,-1304.54,0.00024383,2]
[400244430,1767215441497,-5028.39,0.00024383,2]
[400244431,1767215441506,-500.0,0.00024383,2]
[400244432,1767215441516,-490.82839717,0.00024383,2]
[400244433,1767215441525,-6345.99,0.00024383,2]
[400244434,1767215441535,-500.0,0.00024383,2]
[400244435,1767215441544,-541.38,0.00024383,2]
[400244436,1767215441554,-500.0,0.00024383,2]
[400244437,1767215441563,-1390.89,0.00024383,2]
[400244438,1767215441572,-684.8,0.00024383,2]
[400244439,1767215441582,-642.07,0.00024383,2]
[400244440,1767215441591,-500.0,0.00024383,2]
[400244441,1767215441601,-677.78,0.00024383,2]
[400244442,1767215441610,-1149.95,0.000244,14]
[400244443,1767215441620,-156.72496226,0.00024498,63]
[400244444,1767215441629,-500.0,0.00024657,2]
[400244445,1767215441638,-822.87,0.00024657,2]
[400244446,1767215441648,-648.18785132,0.00024657,2]
[400244447,1767215441658,-1077.49,0.00024657,2]
[400244448,1767215441667,-500.0,0.00024657,2]
[400244449,1767215441676,-500.0,0.00024657,2]
[400244450,1767215441686,-560.02,0.00024657,2]
[400244451,1767215441695,-500.0,0.00024657,2]
[400244452,1767215441705,-1304.54,0.00024657,2]
[400244453,1767215441714,-5028.39,0.00024657,2]
[400244454,1767215441723,-500.0,0.00024657,2]
[400244455,1767215441733,-6345.99,0.00024657,2]
[400244456,1767215441743,-500.0,0.00024657,2]
[400244457,1767215441752,-541.38,0.00024657,2]
[400244458,1767215441761,-500.0,0.00024657,2]
[400244459,1767215441771,-1390.89,0.00024657,2]
[400244460,1767215441780,-684.8,0.00024657,2]
[400244461,1767215441789,-642.07,0.00024657,2]
[400244462,1767215441799,-542.49451985,0.00024657,2]
[400244463,1767215441808,-677.78,0.00024657,2]
[400244464,1767215441817,-150.0,0.00024658,2]
[400244465,1767215441827,-150.0,0.00024658,2]
[400244466,1767215441836,-165.0,0.00024685,14]
[400244467,1767215441845,-156.72496226,0.00024779,79]
[400244468,1767215441854,-150.0,0.00024795,2]
[400244469,1767215441863,-699.612284,0.00024868,2]
[400244470,1767215441872,-177.35,0.000249,2]
[400244471,1767215441882,-151.0,0.000249,7]
[400244472,1767215441892,-151.0,0.000249,7]
[400244473,1767215441901,-151.0,0.000249,7]
[400244474,1767215441914,-151.0,0.000249,7]
[400244475,1767215441923,-151.0,0.000249,7]
[400244476,1767215441932,-579.465896,0.000249,7]
[400244477,1767215441942,-579.465896,0.000249,7]
[400244478,1767215441953,-151.0,0.000249,7]
[400244479,1767215441962,-579.465896,0.000249,7]
[400244480,1767215441971,-579.465896,0.000249,7]
[400244481,1767215441982,-151.0,0.000249,7]
[400244482,1767215441991,-151.0,0.000249,7]
[400244483,1767215442000,-151.0,0.000249,7]
[400244484,1767215442009,-612.575308,0.000249,7]
[400244485,1767215442019,-612.575308,0.000249,7]
[400244486,1767215442028,-612.575308,0.000249,7]
[400244487,1767215442135,-612.575308,0.000249,7]
[400244488,1767215442144,-455113.906232,0.000249,2]
[400244489,1767215442153,-154.840631,0.000249,7]
[400244490,1767215442162,-151.0,0.000249,7]
[400244491,1767215442172,-151.0,0.000249,7]
[400244492,1767215442182,-500.0,0.00024931,2]
[400244493,1767215442191,-822.87,0.00024931,2]
[400244494,1767215442200,-648.18785132,0.00024931,2]
[400244495,1767215442211,-1077.49,0.00024931,2]
[400244496,1767215442220,-500.0,0.00024931,2]
[400244497,1767215442229,-500.0,0.00024931,2]
[400244498,1767215442238,-560.02,0.00024931,2]
[400244499,1767215442247,-500.0,0.00024931,2]
[400244500,1767215442256,-1304.54,0.00024931,2]
[400244501,1767215442265,-5028.39,0.00024931,2]
[400244502,1767215442275,-500.0,0.00024931,2]
[400244503,1767215442284,-6345.99,0.00024931,2]
[400244504,1767215442294,-500.0,0.00024931,2]
[400244505,1767215442304,-541.38,0.00024931,2]
[400244506,1767215442314,-500.0,0.00024931,2]
[400244507,1767215442323,-1390.89,0.00024931,2]
[400244508,1767215442333,-684.8,0.00024931,2]
[400244509,1767215442343,-642.07,0.00024931,2]
[400244510,1767215442352,-677.78,0.00024931,2]
[400244511,1767215442361,-150.0,0.00024932,2]
[400244512,1767215442370,-156.72496226,0.0002506,94]
[400244513,1767215442379,-150.0,0.00025069,2]
[400244514,1767215442389,-921.25637526,0.00025105,2]
[400244515,1767215442398,-500.0,0.00025205,2]
[400244516,1767215442407,-822.87,0.00025205,2]
[400244517,1767215442416,-648.18785132,0.00025205,2]
[400244518,1767215442426,-1077.49,0.00025205,2]
[400244519,1767215442435,-500.0,0.00025205,2]
[400244520,1767215442445,-500.0,0.00025205,2]
[400244521,1767215442454,-560.02,0.00025205,2]
[400244522,1767215442463,-500.0,0.00025205,2]
[400244523,1767215442473,-1304.54,0.00025205,2]
[400244524,1767215442482,-5028.39,0.00025205,2]
[400244525,1767215442492,-500.0,0.00025205,2]
[400244526,1767215442501,-6345.99,0.00025205,2]
[400244527,1767215442511,-500.0,0.00025205,2]
[400244528,1767215442520,-541.38,0.00025205,2]
[400244529,1767215442530,-500.0,0.00025205,2]
[400244530,1767215442539,-1390.89,0.00025205,2]
[400244531,1767215442548,-684.8,0.00025205,2]
[400244532,1767215442558,-642.07,0.00025205,2]
[400244533,1767215442568,-677.78,0.00025205,2]
[400244534,1767215442579,-301.50509152,0.00025205,2]
[400244535,1767215442588,-150.0,0.00025206,2]
[400244536,1767215442601,-250.0,0.00025343,2]
[400244537,1767215442610,-232.1,0.00025433,2]
[400244538,1767215442620,-500.0,0.00025479,2]
[400244539,1767215442629,-822.87,0.00025479,2]
[400244540,1767215442638,-648.18785132,0.00025479,2]
[400244541,1767215442648,-1077.49,0.00025479,2]
[400244542,1767215442658,-286.39883318,0.00025479,2]
[400244543,1767215442667,-500.0,0.00025479,2]
[400244544,1767215442676,-560.02,0.00025479,2]
[400244545,1767215442685,-500.0,0.00025479,2]
[400244546,1767215442695,-1304.54,0.00025479,2]
[400244547,1767215442705,-5028.39,0.00025479,2]
[400244548,1767215442714,-500.0,0.00025479,2]
[400244549,1767215442723,-6345.99,0.00025479,2]
[400244550,1767215442733,-500.0,0.00025479,2]
[400244551,1767215442742,-541.38,0.00025479,2]
[400244552,1767215442751,-500.0,0.00025479,2]
[400244553,1767215442761,-1390.89,0.00025479,2]
[400244554,1767215442770,-684.8,0.00025479,2]
[400244555,1767215442779,-642.07,0.00025479,2]
[400244556,1767215442788,-677.78,0.00025479,2]
[400244557,1767215442797,-9359.66,0.000255,2]
[400244558,1767215442806,-151.0,0.0002557,2]
[400244559,1767215442815,-151.0,0.0002557,2]
[400244560,1767215442824,-151.0,0.0002557,2]
[400244561,1767215442833,-151.0,0.0002557,2]
[400244562,1767215442842,-151.0,0.0002557,2]
[400244563,1767215442852,-1000.0,0.0002557,2]
[400244564,1767215442862,-151.0,0.0002557,2]
[400244565,1767215442871,-496.47127164,0.0002557,2]
[400244566,1767215442879,-500.0,0.0002557,2]
[400244567,1767215442889,-1000.0,0.0002557,2]
[400244568,1767215442900,-151.0,0.0002557,2]
[400244569,1767215442914,-500.0,0.0002557,2]
[400244570,1767215442924,-1000.0,0.0002557,2]
[400244571,1767215442934,-160.0,0.0002557,2]
[400244572,1767215442951,-500.0,0.0002557,2]
[400244573,1767215442962,-1000.0,0.0002557,2]
[400244574,1767215442972,-160.0,0.0002557,2]
[400244575,1767215442981,-500.0,0.0002557,2]
[400244576,1767215442990,-1000.0,0.0002557,2]
[400244577,1767215442999,-160.0,0.0002557,2]
[400244578,1767215443008,-500.0,0.0002557,2]
[400244579,1767215443018,-1000.0,0.0002557,2]
[400244580,1767215443027,-160.0,0.0002557,2]
[400244581,1767215443036,-500.0,0.0002557,2]
[400244582,1767215443046,-151.0,0.0002557,2]
[400244583,1767215443055,-1000.0,0.0002557,2]
[400244584,1767215443064,-160.0,0.0002557,2]
[400244585,1767215443073,-2398.4119403,0.0002557,2]
[400244586,1767215443083,-500.0,0.0002557,2]
[400244587,1767215443092,-151.0,0.0002557,2]
[400244588,1767215443101,-1000.0,0.0002557,2]
[400244589,1767215443110,-151.12503043,0.0002557,2]
[400244590,1767215443119,-500.0,0.0002557,2]
[400244591,1767215443128,-151.0,0.0002557,2]
[400244592,1767215443139,-1000.0,0.0002557,2]
[400244593,1767215443149,-500.0,0.0002557,2]
[400244594,1767215443158,-151.0,0.0002557,2]
[400244595,1767215443167,-1000.0,0.0002557,2]
[400244596,1767215443176,-500.0,0.0002557,2]
[400244597,1767215443185,-196.9088468,0.0002557,2]
[400244598,1767215443195,-1000.0,0.0002557,2]
[400244599,1767215443204,-500.0,0.0002557,2]
[400244600,1767215443214,-1000.0,0.0002557,2]
[400244601,1767215443223,-500.0,0.0002557,2]
[400244602,1767215443232,-1000.0,0.0002557,2]
[400244603,1767215443242,-500.0,0.0002557,2]
[400244604,1767215443251,-500.0,0.0002557,2]
[400244605,1767215443260,-500.0,0.0002557,2]
[400244606,1767215443270,-500.0,0.0002557,2]
[400244607,1767215443279,-500.0,0.0002557,2]
[400244608,1767215443288,-500.0,0.0002557,2]
[400244609,1767215443297,-500.0,0.0002557,2]
[400244610,1767215443307,-500.0,0.0002557,2]
[400244611,1767215443316,-500.0,0.0002557,2]
[400244612,1767215443326,-500.0,0.0002557,2]
[400244613,1767215443335,-250.0,0.0002557,2]
[400244614,1767215443344,-500.0,0.0002557,2]
[400244615,1767215443353,-250.0,0.0002557,2]
[400244617,1767215443363,-516.509709,0.0002557,2]
[400244619,1767215443373,-250.0,0.0002557,2]
[400244621,1767215443383,-250.0,0.0002557,2]
[400244622,1767215443392,-250.0,0.0002557,2]
[400244623,1767215443401,-250.0,0.0002557,2]
[400244625,1767215443411,-250.0,0.0002557,2]
[400244626,1767215443420,-250.0,0.0002557,2]
[400244628,1767215443429,-250.0,0.0002557,2]
[400244629,1767215443439,-250.0,0.0002557,2]
[400244630,1767215443449,-250.0,0.0002557,2]
[400244631,1767215443459,-250.0,0.0002557,2]
[400244632,1767215443468,-335.77230478,0.0002557,2]
[400244633,1767215443477,-250.0,0.0002557,2]
[400244634,1767215443486,-250.0,0.0002557,2]
[400244635,1767215443496,-250.0,0.0002557,2]
[400244636,1767215443505,-250.0,0.0002557,2]
[400244637,1767215443514,-250.0,0.0002557,2]
[400244638,1767215443523,-250.0,0.0002557,2]
[400244639,1767215443533,-250.0,0.0002557,2]
[400244640,1767215443542,-250.0,0.0002557,2]
[400244641,1767215443551,-250.0,0.0002557,2]
[400244642,1767215443560,-250.0,0.0002557,2]
[400244643,1767215443569,-500.0,0.00025753,2]
[400244644,1767215443578,-822.87,0.00025753,2]
[400244645,1767215443589,-1077.49,0.00025753,2]
[400244646,1767215443598,-500.0,0.00025753,2]
[400244647,1767215443607,-560.02,0.00025753,2]
[400244648,1767215443616,-500.0,0.00025753,2]
[400244649,1767215443626,-1304.54,0.00025753,2]
[400244650,1767215443635,-5028.39,0.00025753,2]
[400244651,1767215443645,-500.0,0.00025753,2]
[400244652,1767215443655,-6345.99,0.00025753,2]
[400244653,1767215443664,-500.0,0.00025753,2]
[400244654,1767215443673,-541.38,0.00025753,2]
[400244655,1767215443682,-500.0,0.00025753,2]
[400244656,1767215443692,-1390.89,0.00025753,2]
[400244657,1767215443705,-684.8,0.00025753,2]
[400244658,1767215443714,-642.07,0.00025753,2]
[400244659,1767215443724,-677.78,0.00025753,2]
[400244660,1767215443734,-466.35616462,0.00025976,2]
[400244661,1767215443743,-500.0,0.00026027,2]
[400244662,1767215443753,-822.87,0.00026027,2]
[400244663,1767215443763,-1077.49,0.00026027,2]
[400244664,1767215443778,-500.0,0.00026027,2]
[400244665,1767215443788,-560.02,0.00026027,2]
[400244666,1767215443797,-500.0,0.00026027,2]
[400244667,1767215443806,-1304.54,0.00026027,2]
[400244668,1767215443815,-5028.39,0.00026027,2]
[400244669,1767215443825,-500.0,0.00026027,2]
[400244670,1767215443834,-6345.99,0.00026027,2]
[400244671,1767215443843,-500.0,0.00026027,2]
[400244672,1767215443852,-541.38,0.00026027,2]
[400244673,1767215443862,-626.66,0.00026027,2]
[400244674,1767215443871,-1390.89,0.00026027,2]
[400244675,1767215443880,-684.8,0.00026027,2]
[400244676,1767215443889,-642.07,0.00026027,2]
[400244677,1767215443899,-677.78,0.00026027,2]
[400244678,1767215443910,-514.84070869,0.00026118,2]
[400244679,1767215443920,-2487.15318209,0.00026118,2]
[400244680,1767215443929,-206.2,0.00026301,2]
[400244681,1767215443938,-822.87,0.00026301,2]
[400244682,1767215443948,-1077.49,0.00026301,2]
[400244683,1767215443957,-500.0,0.00026301,2]
[400244684,1767215443966,-560.02,0.00026301,2]
[400244685,1767215443976,-500.0,0.00026301,2]
[400244686,1767215443986,-1304.54,0.00026301,2]
[400244687,1767215443996,-5028.39,0.00026301,2]
[400244688,1767215444005,-500.0,0.00026301,2]
[400244689,1767215444015,-6345.99,0.00026301,2]
[400244690,1767215444024,-500.0,0.00026301,2]
[400244691,1767215444034,-541.38,0.00026301,2]
[400244692,1767215444044,-1390.89,0.00026301,2]
[400244693,1767215444053,-684.8,0.00026301,2]
[400244694,1767215444062,-642.07,0.00026301,2]
[400244695,1767215444071,-677.78,0.00026301,2]
[400244696,1767215444080,-822.87,0.00026575,2]
[400244697,1767215444090,-1077.49,0.00026575,2]
[400244698,1767215444100,-205.56018131,0.00026575,2]
[400244699,1767215444109,-560.02,0.00026575,2]
[400244700,1767215444119,-424.40079341,0.00026575,2]
[400244701,1767215444128,-1304.54,0.00026575,2]
[400244702,1767215444138,-5028.39,0.00026575,2]
[400244703,1767215444148,-500.0,0.00026575,2]
[400244704,1767215444157,-6345.99,0.00026575,2]
[400244705,1767215444167,-183.92225153,0.00026575,2]
[400244706,1767215444176,-541.38,0.00026575,2]
[400244707,1767215444186,-1390.89,0.00026575,2]
[400244708,1767215444195,-684.8,0.00026575,2]
[400244709,1767215444204,-642.07,0.00026575,2]
[400244710,1767215444214,-677.78,0.00026575,2]
[400244711,1767215444224,-1973.55132122,0.00026621,2]
[400244712,1767215444234,-533.88981491,0.00026666,2]
[400244713,1767215444245,-2579.17784983,0.00026666,2]
[400244715,1767215444254,-958.576643,0.00026676,2]
[400244716,1767215444264,-822.87,0.00026849,2]
[400244718,1767215444273,-1077.49,0.00026849,2]
[400244720,1767215444282,-560.02,0.00026849,2]
[400244721,1767215444292,-1304.54,0.00026849,2]
[400244722,1767215444308,-5028.39,0.00026849,2]
[400244723,1767215444318,-500.0,0.00026849,2]
[400244724,1767215444328,-6345.99,0.00026849,2]
[400244725,1767215444337,-541.38,0.00026849,2]
[400244726,1767215444347,-1390.89,0.00026849,2]
[400244727,1767215444357,-684.8,0.00026849,2]
[400244728,1767215444366,-642.07,0.00026849,2]
[400244730,1767215444375,-677.78,0.00026849,2]
[400244731,1767215444385,-190.0,0.00026877,22]
[400244733,1767215444394,-822.87,0.00027123,2]
[400244735,1767215444404,-1077.49,0.00027123,2]
[400244736,1767215444414,-560.02,0.00027123,2]
[400244737,1767215444514,-1304.54,0.00027123,2]
[400244738,1767215444524,-5028.39,0.00027123,2]
[400244739,1767215444533,-500.0,0.00027123,2]
[400244740,1767215444543,-6345.99,0.00027123,2]
[400244741,1767215444553,-541.38,0.00027123,2]
[400244742,1767215444562,-1390.89,0.00027123,2]
[400244743,1767215444572,-684.8,0.00027123,2]
[400244744,1767215444581,-642.07,0.00027123,2]
[400244745,1767215444590,-677.78,0.00027123,2]
[400244746,1767215444600,-232.1,0.00027143,2]
[400244747,1767215444609,-553.64373807,0.00027214,2]
[400244748,1767215444619,-2674.60743027,0.00027214,2]
[400244749,1767215444628,-5000.0,0.00027396,2]
[400244750,1767215444638,-5000.0,0.00027396,7]
[400244751,1767215444648,-1920.8654385,0.00027397,2]
[400244752,1767215444658,-18595.2335338,0.00027397,2]
[400244753,1767215444667,-822.87,0.00027397,2]
[400244754,1767215444677,-260.8204353,0.00027397,2]
[400244755,1767215444687,-169.466222,0.00027397,7]
[400244756,1767215444697,-169.466222,0.00027397,7]
[400244757,1767215444706,-169.466222,0.00027397,7]
[400244758,1767215444715,-169.466222,0.00027397,7]
[400244759,1767215444724,-1077.49,0.00027397,2]
[400244760,1767215444734,-560.02,0.00027397,2]
[400244761,1767215444744,-579.465896,0.00027397,7]
[400244762,1767215444753,-579.465896,0.00027397,7]
[400244763,1767215444763,-153.327647,0.00027397,7]
[400244764,1767215444772,-579.465896,0.00027397,7]
[400244765,1767215444781,-579.465896,0.00027397,7]
[400244766,1767215444790,-151.0,0.00027397,7]
[400244767,1767215444799,-151.0,0.00027397,7]
[400244768,1767215444808,-1304.54,0.00027397,2]
[400244769,1767215444817,-151.000017,0.00027397,7]
[400244770,1767215444826,-612.575308,0.00027397,7]
[400244771,1767215444835,-612.575308,0.00027397,7]
[400244772,1767215444845,-612.575308,0.00027397,7]
[400244773,1767215444855,-612.575308,0.00027397,7]
[400244774,1767215444864,-5028.39,0.00027397,2]
[400244775,1767215444874,-500.0,0.00027397,2]
[400244776,1767215444883,-6345.99,0.00027397,2]
[400244777,1767215444893,-541.38,0.00027397,2]
[400244778,1767215444902,-1390.89,0.00027397,2]
[400244779,1767215444915,-684.8,0.00027397,2]
[400244780,1767215444924,-642.07,0.00027397,2]
[400244781,1767215444933,-151.0,0.00027397,7]
[400244782,1767215444942,-677.78,0.00027397,2]
[400244783,1767215444953,-151.0,0.00027397,7]
[400244784,1767215444962,-1041.66666667,0.00027397,7]
[400244785,1767215444972,-299.0,0.00027397,2]
[400244786,1767215444983,-299.0,0.00027397,2]
[400244787,1767215444993,-299.0,0.00027397,2]
[400244788,1767215445002,-299.0,0.00027397,2]
[400244789,1767215445011,-299.0,0.00027397,2]
[400244790,1767215445020,-299.0,0.00027397,2]
[400244791,1767215445029,-299.0,0.00027397,2]
[400244792,1767215445038,-299.0,0.00027397,2]
[400244793,1767215445047,-299.0,0.00027397,2]
[400244794,1767215445057,-299.0,0.00027397,2]
[400244795,1767215445066,-299.0,0.00027397,2]
[400244796,1767215445075,-299.0,0.00027397,2]
[400244797,1767215445085,-299.0,0.00027397,2]
[400244798,1767215445094,-299.0,0.00027397,2]
[400244799,1767215445103,-299.0,0.00027397,2]
[400244800,1767215445112,-299.0,0.00027397,2]
[400244801,1767215445122,-299.0,0.00027397,2]